fUST/lending_fUST_20241108
["ID","MTS","AMOUNT","RATE_DAILY","PERIOD"]
[341564100,1730999446783,-162.45617148,0.00031773,5]
[341564102,1730999446793,-288.72538904,0.00031773,5]
[341564104,1730999446804,-260.52414203,0.00031773,5]
[341564106,1730999446813,-502.51838893,0.00031773,5]
[341564108,1730999446825,-500.0,0.00031799,7]
[341564110,1730999446835,-500.0,0.000318,2]
[341564112,1730999446844,-533.53920216,0.000318,2]
[341564114,1730999446854,-474983.827744,0.000318,2]
[341564116,1730999446864,-533.53920216,0.00031858,2]
[341564118,1730999446873,-500.0,0.00031873,5]
[341564120,1730999446883,-151.0,0.0003188,7]
[341564122,1730999446892,-151.0,0.0003189,7]
[341564124,1730999446902,-151.0,0.0003189,7]
[341564126,1730999446912,-151.0,0.0003189,7]
[341564128,1730999446923,-185.70282435,0.00031899,2]
[341564130,1730999446933,-153.725227,0.000319,7]
[341564132,1730999446945,-151.0,0.000319,7]
[341564135,1730999446955,-151.0,0.000319,7]
[341564137,1730999446965,-151.0,0.000319,7]
[341564139,1730999446975,-151.0,0.000319,7]
[341564141,1730999446984,-1067.143616,0.000319,7]
[341564143,1730999446993,-1067.143616,0.000319,7]
[341564145,1730999447003,-151.0,0.000319,7]
[341564147,1730999447012,-151.0,0.000319,7]
[341564149,1730999447022,-151.0,0.000319,7]
[341564151,1730999447031,-266.753243,0.000319,7]
[341564153,1730999447041,-266.753243,0.000319,7]
[341564155,1730999447052,-153.568599,0.000319,7]
[341564157,1730999447061,-706.699597,0.000319,7]
[341564159,1730999447070,-706.699597,0.000319,7]
[341564161,1730999447079,-151.0,0.000319,7]
[341564163,1730999447089,-151.0,0.000319,7]
[341564165,1730999447098,-151.0,0.000319,7]
[341564167,1730999447107,-151.0,0.000319,7]
[341564169,1730999447116,-151.0,0.000319,7]
[341564171,1730999447126,-216.576041,0.000319,7]
[341564173,1730999447137,-216.576041,0.000319,7]
[341564175,1730999447147,-325.1301,0.000319,7]
[341564177,1730999447159,-325.1301,0.000319,7]
[341564179,1730999447169,-151.0,0.000319,7]
[341564181,1730999447178,-151.0,0.000319,7]
[341564183,1730999447188,-151.0,0.000319,7]
[341564185,1730999447198,-616.402059,0.000319,7]
[341564188,1730999447209,-277.883048,0.000319,7]
[341564190,1730999447221,-616.402059,0.000319,7]
[341564192,1730999447230,-277.883048,0.000319,7]
[341564194,1730999447241,-151.0,0.000319,7]
[341564196,1730999447251,-151.0,0.000319,7]
[341564198,1730999447260,-151.0,0.000319,7]
[341564200,1730999447271,-154.644665,0.000319,7]
[341564202,1730999447280,-113823.86690234,0.000319,2]
[341564205,1730999447296,-742.84071694,0.000319,2]
[341564236,1730999829199,160.983019,0.00013973,2]
[341564263,1731000484235,160.983019,0.00013973,2]
[341564266,1731000513905,309.32464153,0.000176,2]
[341564380,1731000632460,-160.983019,0.00022759,2]
[341564382,1731000632469,-232.379262,0.00028569,2]
[341564384,1731000632478,-236.0,0.00028999,2]
[341564386,1731000632488,-5086.437719,0.00029,2]
[341564389,1731000632500,-1133.12684086,0.00029,2]
[341564406,1731000639882,-2980.45961251,0.00029,2]
[341564407,1731000639892,-694.44444444,0.0003,2]
[341564408,1731000639903,-253.96121015,0.00030839,2]
[341564409,1731000639914,-253.96121013,0.0003084,2]
[341564410,1731000639926,-253.96121013,0.0003084,2]
[341564411,1731000639937,-886.13907806,0.0003084,2]
[341564412,1731000639947,-500.0,0.00030939,2]
[341564413,1731000639958,-500.0,0.00030939,2]
[341564415,1731000639968,-2103.1,0.00030939,2]
[341564417,1731000639977,-534.5,0.00030939,2]
[341564419,1731000639987,-500.0,0.00030939,2]
[341564421,1731000639997,-2471.05,0.00030939,2]
[341564423,1731000640006,-604.4801936,0.00030939,2]
[341564426,1731000640016,-500.0,0.00030939,2]
[341564429,1731000640025,-500.0,0.00030939,2]
[341564432,1731000640035,-500.0,0.00030939,2]
[341564435,1731000640046,-503.62948781,0.0003094,2]
[341564439,1731000640055,-500.0,0.0003094,2]
[341564442,1731000640064,-500.0,0.0003094,2]
[341564445,1731000640074,-500.0,0.0003094,2]
[341564448,1731000640088,-335.15129115,0.0003094,2]
[341564451,1731000640097,-2336.0,0.0003094,2]
[341564454,1731000640107,-500.0,0.0003094,2]
[341564457,1731000640116,-500.0,0.0003094,2]
[341564460,1731000640126,-500.0,0.0003094,2]
[341564463,1731000640135,-500.0,0.0003094,2]
[341564466,1731000640145,-500.0,0.0003094,2]
[341564469,1731000640154,-500.0,0.0003094,2]
[341564472,1731000640163,-500.0,0.0003094,2]
[341564475,1731000640174,-500.0,0.0003094,2]
[341564478,1731000640184,-500.0,0.0003094,2]
[341564481,1731000640194,-500.0,0.0003094,2]
[341564484,1731000640204,-500.0,0.0003094,2]
[341564487,1731000640214,-500.0,0.0003094,2]
[341564490,1731000640224,-500.0,0.0003094,2]
[341564493,1731000640233,-500.0,0.0003094,2]
[341564497,1731000640243,-500.0,0.0003094,2]
[341564500,1731000640253,-500.0,0.0003094,2]
[341564503,1731000640262,-500.0,0.0003094,2]
[341564506,1731000640272,-511.29685539,0.0003094,2]
[341564509,1731000640281,-500.0,0.0003094,2]
[341564512,1731000640290,-532.7482526,0.0003094,2]
[341564515,1731000640300,-500.0,0.0003094,2]
[341564518,1731000640310,-500.0,0.0003094,2]
[341564521,1731000640319,-500.0,0.0003094,2]
[341564524,1731000640329,-500.0,0.0003094,2]
[341564527,1731000640339,-500.0,0.0003094,2]
[341564530,1731000640348,-500.0,0.0003094,2]
[341564532,1731000640358,-500.0,0.0003094,2]
[341564534,1731000640367,-500.0,0.0003094,2]
[341564536,1731000640376,-500.0,0.0003094,2]
[341564538,1731000640386,-500.0,0.00030941,2]
[341564540,1731000640395,-513.34439507,0.00030941,2]
[341564542,1731000640404,-500.0,0.00030941,2]
[341564563,1731000640534,-500.0,0.00030941,2]
[341564565,1731000640544,-487.6,0.00030941,2]
[341564567,1731000640555,-500.0,0.00030941,2]
[341564569,1731000640564,-500.0,0.00030941,2]
[341564571,1731000640574,-500.0,0.00030941,2]
[341564573,1731000640583,-233.24974041,0.00030941,2]
[341564575,1731000640593,-507.28269997,0.00030941,2]
[341564577,1731000640602,-370.60768278,0.00030941,2]
[341564579,1731000640612,-320.82381325,0.00030941,2]
[341564581,1731000640621,-406.06965389,0.00030941,2]
[341564583,1731000640631,-500.0,0.00030941,2]
[341564585,1731000640640,-500.0,0.00030941,2]
[341564587,1731000640650,-510.37052922,0.00030941,2]
[341564589,1731000640664,-500.0,0.00030941,2]
[341564591,1731000640673,-500.0,0.00030941,2]
[341564593,1731000640682,-322.54305302,0.00030941,2]
[341564595,1731000640691,-500.0,0.00030941,2]
[341564597,1731000640701,-500.0,0.00030941,2]
[341564599,1731000640711,-500.0,0.00030941,2]
[341564601,1731000640721,-500.0,0.00030941,2]
[341564603,1731000640731,-500.0,0.00030941,2]
[341564605,1731000640741,-503.92537894,0.00030941,2]
[341564607,1731000640751,-504.70466135,0.00030941,2]
[341564609,1731000640761,-502.11619008,0.00030941,2]
[341564611,1731000640770,-500.0,0.00030941,2]
[341564613,1731000640783,-410.78239617,0.00030941,2]
[341564615,1731000640792,-250.0,0.00030941,2]
[341564617,1731000640801,-500.0,0.00030941,2]
[341564619,1731000640811,-500.0,0.00030941,2]
[341564621,1731000640820,-794.98,0.00030942,2]
[341564622,1731000640830,-517.92815653,0.00030943,2]
[341564623,1731000640843,-886.13907805,0.00031052,2]
[341564624,1731000640855,-7988.7135994,0.00031094,2]
[341564625,1731000640866,-500.0,0.00031133,5]
[341564626,1731000640875,-2103.1,0.00031213,2]
[341564627,1731000640884,-534.5,0.00031213,2]
[341564628,1731000640893,-500.0,0.00031213,2]
[341564629,1731000640904,-2471.05,0.00031213,2]
[341564630,1731000640915,-500.0,0.00031213,2]
[341564631,1731000640928,-500.0,0.00031213,2]
[341564632,1731000640937,-2336.0,0.00031214,2]
[341564633,1731000640947,-500.0,0.00031214,2]
[341564634,1731000640956,-500.0,0.00031214,2]
[341564635,1731000640966,-500.0,0.00031214,2]
[341564636,1731000640975,-500.0,0.00031214,2]
[341564637,1731000640986,-500.0,0.00031214,2]
[341564638,1731000640995,-500.0,0.00031215,2]
[341564639,1731000641004,-500.0,0.00031215,2]
[341564640,1731000641015,-268.43744632,0.00031215,2]
[341564641,1731000641025,-269.77429486,0.00031215,2]
[341564642,1731000641035,-500.0,0.00031215,2]
[341564643,1731000641045,-500.0,0.00031215,2]
[341564644,1731000641055,-794.98,0.00031216,2]
[341564645,1731000641066,-7988.7135994,0.0003125,2]
[341564646,1731000641075,-793.427,0.00031252,2]
[341564647,1731000641084,-180.30224153,0.00031388,2]
[341564648,1731000641095,-2103.1,0.00031487,2]
[341564649,1731000641106,-534.5,0.00031487,2]
[341564650,1731000641116,-500.0,0.00031487,2]
[341564651,1731000641125,-2471.05,0.00031487,2]
[341564652,1731000641135,-153.51646824,0.00031487,2]
[341564653,1731000641144,-500.0,0.00031487,2]
[341564654,1731000641153,-344.79663721,0.00031487,2]
[341564655,1731000641162,-500.0,0.00031487,2]
[341564656,1731000641171,-2336.0,0.00031488,2]
[341564657,1731000641183,-500.0,0.00031488,2]
[341564658,1731000641192,-500.0,0.00031488,2]
[341564659,1731000641201,-500.0,0.00031488,2]
[341564660,1731000641210,-466.2,0.00031488,2]
[341564661,1731000641219,-500.0,0.00031488,2]
[341564662,1731000641229,-503.0,0.00031489,2]
[341564663,1731000641239,-500.0,0.00031489,2]
[341564664,1731000641249,-575.85156493,0.00031489,2]
[341564665,1731000641258,-595.21634557,0.00031489,2]
[341564666,1731000641267,-794.98,0.0003149,2]
[341564667,1731000641276,-160.983019,0.00031546,2]
[341564668,1731000641285,-7988.7135994,0.00031698,2]
[341564669,1731000641294,-2103.1,0.00031761,2]
[341564670,1731000641304,-534.5,0.00031761,2]
[341564671,1731000641313,-500.0,0.00031761,2]
[341564672,1731000641323,-2471.05,0.00031761,2]
[341564673,1731000641332,-2336.0,0.00031762,2]
[341564674,1731000641341,-500.0,0.00031762,2]
[341564675,1731000641350,-285.8104099,0.00031762,2]
[341564676,1731000641359,-500.0,0.00031763,2]
[341564677,1731000641368,-794.98,0.00031764,2]
[341564678,1731000641378,-500.0,0.000318,37]
[341564679,1731000641387,-426.8313618,0.000318,2]
[341564680,1731000641397,-189.94,0.00031848,3]
[341564681,1731000641406,-2400.23,0.00031849,10]
[341564682,1731000641416,-426.83136172,0.00031858,2]
[341564683,1731000641427,-569.83,0.00031859,3]
[341564684,1731000641436,-500.0,0.00031873,5]
[341564685,1731000641445,-600.0,0.00031889,2]
[341564686,1731000641454,-500.0,0.00031889,2]
[341564687,1731000641463,-216.51227642,0.00031889,2]
[341564688,1731000641472,-314.28314559,0.00031889,2]
[341564689,1731000641482,-226.04931595,0.00031889,2]
[341564690,1731000641491,-267.14078201,0.00031889,2]
[341564691,1731000641501,-356.98304611,0.00031889,2]
[341564692,1731000641511,-158.57625497,0.00031889,2]
[341564693,1731000641520,-356237.870808,0.0003189,2]
[341564694,1731000641530,-185.70282435,0.00031899,2]
[341564695,1731000641539,-151.0,0.000319,7]
[341564696,1731000641549,-151.0,0.000319,7]
[341564697,1731000641559,-151.0,0.000319,7]
[341564698,1731000641578,-151.0,0.000319,7]
[341564699,1731000641590,-151.0,0.000319,7]
[341564700,1731000641600,-151.0,0.000319,7]
[341564701,1731000641609,-500.0,0.000319,12]
[341564702,1731000641618,-508.725,0.000319,120]
[341564703,1731000641627,-1153605.55302,0.000319,2]
[341564704,1731000641637,-426.83136172,0.00031916,2]
[341564705,1731000641647,-151.0,0.00031938,7]
[341564706,1731000641656,-426.83136172,0.00031974,2]
[341564707,1731000641666,-800.0,0.00032,30]
[341564708,1731000641677,-5000.0,0.00032,30]
[341564709,1731000641687,-5000.0,0.00032,4]
[341564710,1731000641698,-4494.80178369,0.00032,3]
[341564711,1731000641708,-847.71856844,0.00032,2]
[341564712,1731000641718,-10103.65194112,0.00032,30]
[341564713,1731000641728,-1831.8,0.00032,2]
[341564714,1731000641738,-150.0,0.00032004,120]
[341564715,1731000641747,-426.83136172,0.00032032,2]
[341564716,1731000641757,-2103.1,0.00032035,2]
[341564717,1731000641767,-534.5,0.00032035,2]
[341564718,1731000641778,-382.14,0.00032035,2]
[341564719,1731000641787,-2471.05,0.00032035,2]
[341564720,1731000641797,-2336.0,0.00032036,2]
[341564721,1731000641807,-500.0,0.00032037,2]
[341564722,1731000641817,-794.98,0.00032038,2]
[341564723,1731000641827,-12259.63323044,0.00032049,2]
[341564724,1731000641837,-151.0,0.00032082,120]
[341564725,1731000641847,-426.83136172,0.0003209,2]
[341564726,1731000641859,-287.867,0.00032093,7]
[341564727,1731000641869,-5188.83508473,0.0003212,10]
[341564728,1731000641879,-501.102,0.00032127,7]
[341564729,1731000641890,-150.0,0.00032127,7]
[341564730,1731000641899,-3200.0,0.00032127,2]
[341564731,1731000641909,-426.83136172,0.00032148,2]
[341564732,1731000641919,-151.0,0.00032155,7]
[341564733,1731000641930,-199.88,0.00032157,2]
[341564734,1731000641939,-500.0,0.00032157,2]
[341564735,1731000641949,-152.55106447,0.00032157,2]
[341564736,1731000641959,-1000.0,0.00032184,2]
[341564737,1731000641970,-1000.0,0.00032203,2]
[341564738,1731000641979,-426.83136172,0.00032206,2]
[341564739,1731000641990,-150.92039612,0.00032208,2]
[341564740,1731000642001,-426.83136172,0.00032264,2]
[341564741,1731000642011,-151.0,0.0003229,7]
[341564742,1731000642021,-151.0,0.0003229,7]
[341564743,1731000642031,-244.121543,0.0003229,7]
[341564744,1731000642041,-151.0,0.0003229,7]
[341564745,1731000642051,-151.0,0.0003229,7]
[341564746,1731000642062,-813192.89153929,0.000323,30]
[341564747,1731000642072,-2154.05016,0.000323,14]
[341564748,1731000642082,-13699.71,0.000323,14]
[341564749,1731000642092,-381.62,0.000323,14]
[341564750,1731000642102,-151.0,0.000323,7]
[341564751,1731000642111,-157.103506,0.000323,7]
[341564752,1731000642120,-151.0,0.000323,7]
[341564753,1731000642134,-151.0,0.000323,7]
[341564754,1731000642144,-151.0,0.000323,7]
[341564755,1731000642155,-151.0,0.000323,7]
[341564756,1731000642164,-178.761596,0.000323,2]
[341564757,1731000642174,-526.462045,0.000323,7]
[341564758,1731000642183,-526.462045,0.000323,7]
[341564759,1731000642196,-319.361424,0.000323,7]
[341564760,1731000642205,-319.361424,0.000323,7]
[341564761,1731000642215,-185.513488,0.000323,7]
[341564762,1731000642225,-185.513488,0.000323,7]
[341564763,1731000642235,-2103.1,0.00032309,2]
[341564764,1731000642244,-534.5,0.00032309,2]
[341564765,1731000642254,-2471.05,0.00032309,2]
[341564766,1731000642264,-847.13513866,0.0003231,2]
[341564767,1731000642273,-500.0,0.00032311,2]
[341564768,1731000642283,-794.98,0.00032312,2]
[341564769,1731000642292,-426.83136172,0.00032322,2]
[341564770,1731000642301,-15710.0,0.0003237,30]
[341564771,1731000642311,-177.55,0.00032373,30]
[341564772,1731000642323,-151.0,0.00032373,7]
[341564773,1731000642335,-508.0,0.00032374,30]
[341564774,1731000642346,-151.0,0.00032379,7]
[341564775,1731000642357,-151.0,0.00032379,7]
[341564776,1731000642368,-269.430416,0.00032379,7]
[341564777,1731000642376,-151.0,0.00032379,7]
[341564778,1731000642386,-151.0,0.00032379,7]
[341564779,1731000642395,-6847.65,0.00032379,30]
[341564780,1731000642405,-10000.0,0.00032379,30]
[341564781,1731000642414,-10000.0,0.00032379,30]
[341564782,1731000642424,-10000.0,0.00032379,30]
[341564783,1731000642434,-8917.89,0.00032379,30]
[341564784,1731000642443,-1006.44385007,0.00032392,4]
[341564785,1731000642453,-10000.0,0.00032393,30]
[341564786,1731000642462,-151.0,0.00032393,7]
[341564787,1731000642471,-151.0,0.00032393,7]
[341564788,1731000642480,-151.0,0.00032393,7]
[341564789,1731000642490,-151.0,0.00032393,7]
[341564790,1731000642499,-151.0,0.00032393,7]
[341564791,1731000642508,-151.0,0.00032393,7]
[341564792,1731000642517,-636.029637,0.00032393,7]
[341564793,1731000642526,-636.029637,0.00032393,7]
[341564794,1731000642535,-240.077918,0.00032393,7]
[341564795,1731000642544,-240.077918,0.00032393,7]
[341564796,1731000642555,-554.761854,0.00032393,7]
[341564797,1731000642565,-554.761854,0.00032393,7]
[341564798,1731000642574,-151.0,0.00032393,7]
[341564799,1731000642583,-243.35,0.000324,14]
[341564800,1731000642593,-1675.22,0.000324,30]
[341564801,1731000642602,-6282.52,0.000324,30]
[341564802,1731000642611,-1500.0,0.000324,2]
[341564803,1731000642620,-1500.0,0.000324,2]
[341564804,1731000642630,-1500.0,0.000324,2]
[341564805,1731000642642,-1500.0,0.000324,2]
[341564806,1731000642652,-1500.0,0.000324,2]
[341564807,1731000642662,-1500.0,0.000324,2]
[341564808,1731000642671,-1500.0,0.000324,2]
[341564809,1731000642681,-1500.0,0.000324,2]
[341564810,1731000642690,-1500.0,0.000324,2]
[341564811,1731000642700,-1500.0,0.000324,2]
[341564812,1731000642709,-1600.54,0.000324,2]
[341564813,1731000642719,-151.0,0.000324,7]
[341564814,1731000642728,-151.0,0.000324,7]
[341564815,1731000642737,-151.0,0.000324,7]
[341564816,1731000642747,-151.0,0.000324,7]
[341564817,1731000642757,-151.0,0.000324,7]
[341564818,1731000642767,-194.918437,0.000324,7]
[341564819,1731000642778,-194.918437,0.000324,7]
[341564820,1731000642789,-151.0,0.000324,7]
[341564821,1731000642798,-960.429255,0.000324,7]
[341564822,1731000642808,-960.429255,0.000324,7]
[341564823,1731000642818,-305.587392,0.000324,7]
[341564824,1731000642827,-305.587392,0.000324,7]
[341564825,1731000642837,-292.61709,0.000324,7]
[341564826,1731000642846,-292.61709,0.000324,7]
[341564827,1731000642857,-151.0,0.000324,7]
[341564828,1731000642867,-526.462045,0.000324,7]
[341564829,1731000642877,-526.462045,0.000324,7]
[341564830,1731000642886,-250.094743,0.000324,7]
[341564831,1731000642896,-250.094743,0.000324,7]
[341564832,1731000642905,-319.361424,0.000324,7]
[341564834,1731000642915,-319.361424,0.000324,7]
[341564836,1731000642925,-185.513488,0.000324,7]
[341564837,1731000642938,-185.513488,0.000324,7]
[341564838,1731000643053,-151.0,0.000324,7]
[341564839,1731000643063,-500.0,0.00032413,30]
[341564840,1731000643073,-518.58,0.00032417,30]
[341564841,1731000643083,-155.0,0.00032419,30]
[341564842,1731000643093,-255.4909585,0.00032419,30]
[341564843,1731000643102,-3088.62654674,0.0003242,14]
[341564844,1731000643111,-151.0,0.0003242,7]
[341564845,1731000643122,-127258.57926306,0.00032422,7]
[341564846,1731000643132,-1016.82791901,0.00032422,14]
[341564847,1731000643142,-519.36769875,0.00032422,14]
[341564848,1731000643151,-1485.0,0.00032422,14]
[341564849,1731000643161,-1419.51684577,0.00032422,2]
[341564850,1731000643171,-2000.0,0.00032422,2]
[341564851,1731000643184,-300.0,0.00032422,2]
[341564852,1731000643195,-798.443891,0.00032422,2]
[341564853,1731000643205,-517.39411828,0.00032422,2]
[341564854,1731000643216,-292.80760581,0.00032422,2]
[341564855,1731000643226,-4176.79204398,0.00032422,2]
[341564856,1731000643236,-322.44513795,0.00032422,2]
[341564857,1731000643248,-3057.76198021,0.00032422,2]
[341564858,1731000643259,-1194.88126098,0.00032422,2]
[341564859,1731000643269,-155.2753185,0.00032422,2]
[341564860,1731000643278,-518.62725666,0.00032422,2]
[341564861,1731000643287,-52723.14713975,0.00032422,5]
[341564862,1731000643296,-439.86683209,0.00032422,2]
[341564863,1731000643306,-224.68445829,0.00032422,2]
[341564865,1731000643315,-1024.87567843,0.00032422,2]
[341564866,1731000643325,-18478.98917181,0.00032422,2]
[341564867,1731000643334,-18430.33371062,0.00032422,2]
[341564868,1731000643343,-2862.6543416,0.00032422,2]
[341564869,1731000643353,-1839.54446327,0.00032422,2]
[341564870,1731000643363,-910.53366694,0.00032422,2]
[341564871,1731000643372,-398.1755737,0.00032422,7]
[341564872,1731000643381,-1747.04485731,0.00032422,2]
[341564873,1731000643391,-176.55969462,0.00032422,2]
[341564874,1731000643401,-461.43965764,0.00032422,2]
[341564875,1731000643411,-140001.12790985,0.00032422,20]
[341564876,1731000643421,-634.43739662,0.00032422,2]
[341564877,1731000643432,-11047.0,0.00032422,7]
[341564880,1731000643442,-200.4,0.00032422,2]
[341564883,1731000643451,-1245.73919313,0.00032422,2]
[341564885,1731000643461,-150.879999,0.00032422,2]
[341564886,1731000643470,-188.04,0.00032422,2]
[341564888,1731000643480,-756107.57229334,0.00032422,10]
[341564889,1731000643506,-521.13918533,0.0003094,2]
[341564890,1731000643533,-500.0,0.00031487,2]
[341564891,1731000643542,-2434.3411587,0.00032422,10]
[341564892,1731000643564,-1000.0,0.00032158,2]
[341564893,1731000643573,-109.24096055,0.00032422,10]
[341564894,1731000643585,-1352.29,0.00032422,10]
[341564928,1731000644128,-201.02604,0.00029031,2]
[341564930,1731000644138,-201.02604,0.00029176,2]
[341564932,1731000644148,-500.0,0.00030939,2]
[341564934,1731000644158,-500.0,0.0003094,2]
[341564935,1731000644167,-97.94792,0.00031213,2]
[341564936,1731000644207,-402.05208,0.00031213,2]
[341564938,1731000644216,-191.64130827,0.00031487,2]
[341564939,1731000644226,-521.72,0.00031752,3]
[341564940,1731000644235,-1069.90476338,0.00032147,2]
[341564941,1731000644251,-153.0,0.00032411,30]
[341564943,1731000644262,-122215.488455,0.00032422,10]
[341564961,1731000646517,-500.0,0.00030939,2]
[341564962,1731000646526,-500.0,0.00031213,2]
[341564963,1731000646536,-167.0,0.00032,2]
[341564964,1731000646546,-153.0,0.00032411,30]
[341564965,1731000646558,-153.0,0.00032411,30]
[341564966,1731000646568,-186596.95090598,0.00032422,10]
[341564973,1731000898515,-150.0,0.00029,2]
[341564974,1731000898536,-173.017754,0.0002906,2]
[341564975,1731000898562,-2826.982246,0.0002906,2]
[341564976,1731000898583,-160.873864,0.00029959,2]
[341564977,1731000898605,-162.14389,0.00029959,2]
[341564978,1731000898628,-151.0,0.0003,120]
[341564979,1731000898655,-151.0,0.0003,120]
[341564980,1731000898677,-160.873864,0.00030333,2]
[341564981,1731000898700,-162.14389,0.00030333,2]
[341564982,1731000898723,-160.873864,0.00030708,2]
[341564983,1731000898744,-162.14389,0.00030708,2]
[341564984,1731000898765,-400.0,0.00030937,2]
[341564985,1731000898787,-400.0,0.00030938,2]
[341564986,1731000898809,-500.0,0.00030939,2]
[341564987,1731000898830,-500.0,0.00030939,2]
[341564988,1731000898851,-500.0,0.00030939,2]
[341564989,1731000898875,-500.0,0.00030939,2]
[341564990,1731000898899,-500.0,0.00030939,2]
[341564991,1731000898919,-500.0,0.00030939,2]
[341564992,1731000898945,-500.0,0.00030939,2]
[341564993,1731000898967,-500.0,0.00030939,2]
[341564994,1731000898988,-368.4622671,0.00030939,2]
[341564995,1731000899009,-500.0,0.00030939,2]
[341564996,1731000899030,-500.0,0.00030939,2]
[341564997,1731000899053,-500.0,0.00030939,2]
[341564998,1731000899077,-500.0,0.00030939,2]
[341564999,1731000899102,-500.0,0.00030939,2]
[341565000,1731000899126,-200.0,0.00030939,2]
[341565001,1731000899150,-500.0,0.00030939,2]
[341565002,1731000899175,-440.62237418,0.00030939,2]
[341565003,1731000899201,-500.0,0.00030939,2]
[341565004,1731000899336,-500.0,0.00030939,2]
[341565005,1731000899361,-597.65792378,0.00030939,2]
[341565006,1731000899384,-500.0,0.00030939,2]
[341565007,1731000899405,-500.0,0.00030939,2]
[341565008,1731000899427,-500.0,0.00030939,2]
[341565009,1731000899448,-571.13815328,0.00030939,2]
[341565010,1731000899469,-500.0,0.00030939,2]
[341565011,1731000899492,-500.0,0.00030939,2]
[341565012,1731000899516,-509.69598863,0.00030939,2]
[341565013,1731000899541,-500.0,0.00030939,2]
[341565014,1731000899563,-500.0,0.00030939,2]
[341565015,1731000899585,-528.36394412,0.00030939,2]
[341565016,1731000899619,-500.0,0.00030939,2]
[341565017,1731000899644,-500.0,0.00030939,2]
[341565018,1731000899668,-452.54155758,0.00030939,2]
[341565019,1731000899692,-500.0,0.00030939,2]
[341565020,1731000899714,-500.0,0.00030939,2]
[341565021,1731000899737,-286.8482065,0.00030939,2]
[341565022,1731000899761,-251.3406732,0.00030939,2]
[341565023,1731000899783,-500.0,0.00030939,2]
[341565024,1731000899804,-501.99149255,0.00030939,2]
[341565025,1731000899829,-500.0,0.00030939,2]
[341565026,1731000899852,-332.70707129,0.00030939,2]
[341565027,1731000899878,-500.0,0.00030939,2]
[341565028,1731000899904,-500.0,0.00030939,2]
[341565029,1731000899928,-500.0,0.00030939,2]
[341565030,1731000899950,-177.45694698,0.00030939,2]
[341565031,1731000899976,-500.0,0.00030939,2]
[341565032,1731000900000,-500.0,0.00030939,2]
[341565033,1731000900023,-538.98576274,0.00030939,2]
[341565034,1731000900047,-213.52313913,0.00030939,2]
[341565035,1731000900076,-292.96999207,0.00030939,2]
[341565036,1731000900098,-500.0,0.00030939,2]
[341565037,1731000900122,-500.0,0.00030939,2]
[341565038,1731000900144,-280.79895474,0.00030939,2]
[341565039,1731000900166,-511.78610362,0.00030939,2]
[341565040,1731000900189,-500.0,0.00030939,2]
[341565041,1731000900212,-500.0,0.00030939,2]
[341565042,1731000900234,-500.0,0.00030939,2]
[341565043,1731000900256,-500.0,0.00030939,2]
[341565044,1731000900277,-312.48045757,0.00030939,2]
[341565045,1731000900300,-444.45607114,0.00030939,2]
[341565046,1731000900335,-55.54392886,0.00030939,2]
[341565047,1731000900361,-296.78287785,0.00030939,2]